bitfinex/quotes_ETHUSD_20251226
["timestamp","ask_amount","ask_price","bid_price","bid_amount"]
[1766718932327,1.8261,2966.7,2966.1,0.001]
[1766718932532,0.9441,2966.6,2966.1,0.001]
[1766718932707,0.9441,2966.4,2965.3,0.9503]
[1766718932907,0.9441,2966.2,2965.3,0.9503]
[1766718933108,3.37120318,2966.3,2965.0,0.001]
[1766718933109,0.9441,2966.0,2965.0,0.9513]
[1766718933314,0.9441,2966.0,2965.0,0.001]
[1766718934233,0.95421633,2966.0,2964.5,0.9503]
[1766718934433,1.06461,2965.9,2965.0,0.9503]
[1766718934633,0.882,2965.9,2965.2,0.9503]
[1766718934933,5.19781134,2965.9,2965.2,0.9503]
[1766718935137,1.8261,2965.9,2965.2,0.9503]
[1766718935334,0.882,2966.0,2965.4,0.9503]
[1766718935512,0.882,2965.9,2965.3,0.9503]
[1766718935711,1.8261,2965.9,2965.4,0.43227429]
[1766718935913,0.4263,2968.0,2966.1,0.9503]
[1766718936125,0.4263,2967.6,2966.3,0.9503]
[1766718936341,0.883,2967.5,2966.5,0.9503]
[1766718936656,0.883,2967.5,2966.9,0.95032847]
[1766718936804,0.883,2967.5,2966.9,2.847e-05]
[1766718937218,3.36995349,2967.4,2966.9,2.847e-05]
[1766718937514,0.46044535,2967.3,2966.9,2.847e-05]
[1766718938254,3.36995349,2967.4,2966.9,2.847e-05]
[1766718938722,6.73990698,2967.4,2966.9,2.847e-05]
[1766718938917,7.09140698,2967.4,2966.9,2.847e-05]
[1766718939135,0.3515,2967.3,2966.9,2.847e-05]
[1766718939319,0.3515,2967.1,2965.9,3.37155872]
[1766718939502,0.3515,2966.9,2965.9,3.37155872]
[1766718939707,0.3515,2966.9,2966.0,0.04383177]
[1766718940213,0.3515,2966.9,2965.9,7.69451656]
[1766718940408,0.3515,2966.9,2966.0,7.781413]
[1766718940610,0.883,2966.8,2966.1,2.49789296]
[1766718940807,0.883,2966.8,2965.9,6.74421656]
[1766718940808,0.883,2966.8,2966.0,0.9503]
[1766718941541,0.883,2966.8,2966.2,0.9503]
[1766718941743,0.883,2966.8,2966.3,0.98401203]
[1766718942056,4.25364376,2966.8,2965.9,0.9686]
[1766718942342,0.883,2966.7,2966.1,0.9676]
[1766718942506,0.883,2966.8,2966.3,0.9676]
[1766718942713,0.883,2967.4,2966.5,0.9676]
[1766718943120,0.883,2967.4,2966.6,1.00130862]
[1766718943356,5.0503606,2967.4,2966.6,1.00130862]
[1766718943645,4.1673606,2967.4,2966.6,1.00130862]
[1766718943822,4.25296533,2967.4,2966.6,1.00130862]
[1766718944010,0.3515,2967.5,2966.6,1.00130862]
[1766718944214,0.9865,2967.4,2966.6,3.40452493]
[1766718944412,4.25285752,2967.5,2966.7,0.9942]
[1766718944721,0.883,2967.5,2966.8,0.03370635]
[1766718944930,3.36977426,2967.6,2966.7,0.9942]
[1766718944931,6.73956846,2967.6,2966.7,0.9942]
[1766718945240,5.02538111,2967.6,2966.7,0.9942]
[1766718945743,0.77260685,2967.6,2966.7,3.37072649]
[1766718945942,0.9885,2968.2,2966.8,1.02790635]
[1766718946130,7.72481744,2968.1,2966.8,1.02790635]
[1766718946332,0.9865,2968.0,2966.8,0.9942]
[1766718946646,3.36915872,2968.1,2967.0,0.9942]
[1766718946819,4.25215872,2968.1,2967.2,0.9942]
[1766718947024,4.25215872,2968.1,2967.4,0.9942]
[1766718947025,8.38362922,2968.1,2967.4,0.9942]
[1766718948040,8.38362922,2968.1,2967.1,0.9942]
[1766718948225,0.9865,2968.0,2966.7,3.37068429]
[1766718948544,0.9865,2968.0,2967.1,0.9942]
[1766718948749,2.26062879,2968.0,2967.1,0.9942]
[1766718949246,0.9865,2967.9,2967.1,0.9942]
[1766718949620,4.35598493,2967.9,2967.1,0.9942]
[1766718951423,7.72546986,2967.9,2967.1,0.9942]
[1766718952050,3.36948493,2967.9,2967.1,0.9942]
[1766718952352,3.36920077,2968.1,2967.3,0.9942]
[1766718952523,0.002,2968.2,2967.5,0.9942]
[1766718952723,0.002,2968.2,2967.6,1.02789726]
[1766718953937,0.002,2968.4,2967.6,3.4033201]
[1766718954142,0.002,2968.4,2967.8,0.9942]
[1766718954755,0.002,2968.4,2967.9,0.03369385]
[1766718954959,0.002,2968.4,2967.9,0.9942]
[1766718955649,0.002,2968.7,2968.0,11.713124]
[1766718955856,0.002,2968.7,2968.2,0.9942]
[1766718956550,0.002,2968.7,2968.3,0.03368931]
[1766718956753,3.3681788,2969.0,2968.3,0.9942]
[1766718957246,6.7363576,2969.0,2968.3,0.9942]
[1766718957451,0.9865,2968.8,2967.9,0.9942]
[1766718957752,0.9865,2968.8,2967.7,3.36960094]
[1766718957951,0.9865,2968.8,2967.7,0.9942]
[1766718958151,0.9865,2968.7,2967.8,0.9942]
[1766718958337,0.9865,2968.7,2967.9,1.76753627]
[1766718958748,0.67383576,2968.9,2967.9,1.76753627]
[1766718958749,3.36825086,2968.9,2968.0,0.9942]
[1766718959456,0.9865,2968.8,2967.9,0.77333627]
[1766718959756,0.9865,2968.7,2967.9,0.77333627]
[1766718960122,3.36859125,2968.6,2967.7,0.9942]
[1766718960650,3.36859125,2968.6,2967.8,0.03369499]
[1766718960878,3.36859125,2968.6,2967.8,1.02789499]
[1766718961066,6.7371825,2968.6,2967.8,1.02789499]
[1766718961240,7.7236825,2968.6,2967.8,0.9942]
[1766718961429,0.77236825,2968.5,2967.8,0.9942]
[1766718962364,4.14110306,2968.5,2967.8,0.9942]
[1766718963630,4.14110306,2968.5,2967.9,0.03369385]
[1766718963830,4.14110306,2968.5,2967.9,1.02789385]
[1766718965352,0.77236825,2968.5,2967.9,1.02789385]
[1766718965653,3.37049446,2968.7,2968.0,0.9942]
[1766718966162,7.72548892,2968.7,2968.0,0.9942]
[1766718967255,0.9865,2968.6,2967.7,0.9942]
[1766718967558,0.9865,2968.6,2967.0,3.3713361]
[1766718967559,0.9865,2968.6,2967.4,0.9942]
[1766718967739,0.9865,2968.4,2967.4,0.9942]
[1766718969160,1.8685,2968.4,2967.4,0.9942]
[1766718969356,0.9865,2968.1,2967.4,0.9942]
[1766718969666,0.9865,2968.1,2968.0,0.001]
[1766718969833,0.9865,2968.1,2967.4,0.9942]
[1766718970159,1.75895853,2968.1,2967.4,0.9942]
[1766718971567,3.36927223,2968.0,2967.4,0.9942]
[1766718971738,5.12816885,2968.1,2967.4,0.9942]
[1766718971933,0.9865,2968.0,2967.2,1.8762]
[1766718972150,1.49931689,2968.0,2967.2,1.8762]
[1766718972563,0.9865,2967.9,2967.2,0.882]
[1766718972935,4.25083977,2968.4,2967.3,0.9942]
[1766718972936,3.3690759,2968.2,2967.3,0.9942]
[1766718973245,0.9865,2968.1,2967.3,0.9942]
[1766718973444,1.84716518,2968.1,2967.3,0.9942]
[1766718973645,0.9865,2968.1,2967.3,0.9942]
[1766718974055,6.73817693,2968.2,2967.3,0.9942]
[1766718974369,0.9455,2968.1,2967.3,0.9942]
[1766718975544,0.9455,2968.1,2967.2,0.882]
[1766718975931,4.31477223,2968.0,2967.1,0.9296]
[1766718976163,4.31477223,2968.0,2967.2,0.4301001]
[1766718976344,4.31477223,2968.0,2967.2,0.9296]
[1766718976738,0.9455,2967.9,2967.2,0.9296]
[1766718977265,0.9455,2967.9,2967.3,0.001]
[1766718977966,3.36949929,2967.8,2967.3,0.001]
[1766718978665,0.9455,2967.7,2967.0,0.001]
[1766718978865,0.43149993,2967.6,2967.0,0.001]
[1766718979161,1.37699993,2967.6,2967.0,0.03470407]
[1766718979335,1.37699993,2967.6,2967.0,0.001]
[1766718979533,0.9455,2967.5,2967.0,0.001]
[1766718979962,0.43149993,2967.6,2967.0,0.9306]
[1766718980152,3.80125147,2967.6,2967.0,0.96430407]
[1766718980352,4.74675147,2967.6,2967.0,0.96430407]
[1766718980546,4.74675147,2967.6,2967.0,0.9306]
[1766718982282,0.9455,2968.0,2967.1,0.03370294]
[1766718982445,3.36904521,2968.2,2967.2,0.9296]
[1766718982652,4.31448654,2968.3,2967.4,0.9296]
[1766718982869,4.31448654,2968.3,2967.5,0.03369839]
[1766718983039,4.31448654,2968.3,2967.5,0.9296]
[1766718983672,4.31448654,2968.3,2967.6,0.03369726]
[1766718983876,4.31448654,2968.3,2967.6,0.9296]
[1766718984776,3.36859125,2968.6,2967.7,0.96329612]
[1766718984943,0.002,2968.7,2967.7,0.96329612]
[1766718985476,0.002,2968.7,2967.9,0.9296]
[1766718985673,0.002,2968.7,2968.1,0.9296]
[1766718985838,0.002,2968.3,2968.2,0.96329045]
[1766718986983,0.002,2968.3,2968.2,1.39654443]
[1766718987155,0.002,2969.1,2968.3,0.9296]
[1766718987473,0.002,2969.1,2968.5,0.9296]
[1766718987774,0.002,2969.1,2968.6,0.96328591]
[1766718988272,0.002,2969.2,2968.2,7.1713444]
[1766718988442,0.002,2969.4,2968.5,0.9296]
[1766718988840,0.9475,2969.4,2968.5,0.9296]
[1766718990239,0.9455,2969.2,2968.1,1.8116]
[1766718990441,4.31375086,2968.9,2968.1,1.8116]
[1766718990641,0.9455,2968.9,2968.1,1.8116]
[1766718991480,0.9455,2968.9,2968.1,0.882]
[1766718992281,3.95787882,2969.1,2968.2,0.96329045]
[1766718992488,3.36791054,2969.2,2968.2,0.96329045]
[1766718992907,3.36776946,2969.4,2968.2,3.4027324]
[1766718993069,3.36776946,2969.4,2968.4,0.9296]
[1766718993269,6.73553892,2969.4,2968.6,0.9296]
[1766718993568,3.36776946,2969.4,2968.7,0.03368477]
[1766718993768,4.13627335,2969.4,2968.7,0.03368477]
[1766718993967,4.13627335,2969.4,2968.7,0.96328477]
[1766718994169,0.002,2969.0,2968.7,0.96328477]
[1766718994370,0.002,2969.0,2968.7,0.9296]
[1766718994996,4.31507272,2969.5,2968.7,0.9296]
[1766718995182,4.31507272,2969.5,2968.8,0.96328364]
[1766718995379,0.002,2969.5,2968.8,0.96328364]
[1766718995571,3.36961074,2969.5,2968.8,0.96328364]
[1766718996088,4.31511074,2969.5,2968.8,0.03368364]
[1766718996302,4.31511074,2969.5,2968.3,3.36888592]
[1766718996303,0.9455,2969.4,2968.3,3.36888592]
[1766718996497,3.36779712,2969.3,2968.2,3.36904521]
[1766718996702,3.36779712,2969.3,2968.1,4.25114956]
[1766718996703,0.9455,2969.2,2968.1,5.18072453]
[1766718996902,0.9455,2969.2,2968.1,1.8116]
[1766718996903,0.9455,2969.1,2968.1,1.8116]
[1766718997201,0.9455,2969.1,2968.0,3.36922359]
[1766718997581,0.882,2969.2,2968.1,0.9296]
[1766718997802,1.7324,2969.2,2968.1,4.29875837]
[1766718998005,1.7324,2969.2,2968.2,0.9296]
[1766718999418,7.62914796,2969.1,2968.2,0.9296]
[1766718999579,0.9352,2968.9,2967.7,0.9296]
[1766719000103,0.9352,2968.7,2967.4,0.9296]
[1766719000406,0.9352,2968.5,2967.5,0.03369839]
[1766719000699,0.9352,2968.5,2967.5,4.33308263]
[1766719000918,0.9352,2968.5,2967.7,0.9296]
[1766719001615,3.36881821,2968.4,2967.7,0.9296]
[1766719001813,0.882,2968.3,2967.7,0.9296]
[1766719002285,0.882,2968.2,2967.7,0.9296]
[1766719002878,0.882,2968.2,2967.6,0.001]
[1766719003088,1.12825,2968.1,2967.6,0.001]
[1766719003509,4.49742214,2968.1,2967.6,0.001]
[1766719003808,0.9455,2968.1,2967.6,0.001]
[1766719004127,1.1388,2968.0,2967.0,1.2747]
[1766719004779,1.1388,2968.0,2967.1,1.2737]
[1766719004997,0.882,2967.9,2967.1,1.2737]
[1766719005199,2.01471833,2968.0,2967.1,1.2737]
[1766719005509,3.36949929,2967.8,2967.1,1.2737]
[1766719006013,7.95599858,2967.8,2967.1,1.2737]
[1766719006379,4.58649929,2967.8,2967.1,1.2737]
[1766719006688,0.882,2967.7,2967.1,1.2737]
[1766719007477,4.25164893,2967.7,2967.1,1.2737]
[1766719007807,8.16816275,2967.7,2967.1,1.2737]
[1766719008006,1.331,2967.6,2967.0,0.001]
[1766719009710,3.36983993,2967.5,2966.5,1.4782]
[1766719009909,0.882,2967.5,2966.7,1.4772]
[1766719010087,0.882,2967.4,2966.9,1.4772]
[1766719010293,0.882,2967.4,2967.0,1.51090407]
[1766719010700,0.882,2967.3,2967.0,1.4772]
[1766719010904,0.882,2967.2,2967.0,1.4772]
[1766719011106,0.882,2967.1,2966.5,0.001]
[1766719011331,2.253,2967.1,2966.5,0.001]
[1766719011611,5.62338372,2967.1,2966.5,0.001]
[1766719011815,2.253,2967.1,2966.5,0.001]
[1766719012280,5.62332256,2967.1,2966.5,0.001]
[1766719012709,3.15235056,2967.1,2966.2,1.4772]
[1766719012909,2.253,2967.1,2966.3,1.51091203]
[1766719013109,5.62329541,2967.1,2966.3,1.51091203]
[1766719013417,1.371,2967.0,2966.3,1.4772]
[1766719013616,8.11204282,2966.9,2966.1,0.001]
[1766719013810,6.74104282,2966.9,2966.1,0.001]
[1766719014022,6.74104282,2966.9,2965.9,0.001]
[1766719014023,1.371,2966.8,2965.9,0.001]
[1766719014321,1.371,2966.8,2965.6,0.001]
[1766719014322,1.371,2966.8,2965.6,1.4782]
[1766719014478,1.371,2966.8,2965.7,0.03371885]
[1766719014680,1.371,2966.8,2965.6,1.4782]
[1766719014918,6.74104282,2966.9,2965.6,1.4782]
[1766719015212,7.71667301,2966.9,2965.7,0.03371885]
[1766719015511,7.71667301,2966.9,2965.8,1.4772]
[1766719015717,9.08767301,2966.9,2965.9,0.03371657]
[1766719015886,0.883,2966.8,2966.0,1.4772]
[1766719016084,2.34663019,2966.9,2966.1,0.0337143]
[1766719016284,0.883,2966.8,2966.1,1.4772]
[1766719016682,4.74106706,2967.3,2966.1,1.4772]
[1766719016883,4.96279903,2967.9,2966.3,1.4772]
[1766719016884,1.371,2967.7,2966.3,1.4772]
[1766719017180,0.002,2967.2,2966.5,1.4772]
[1766719017381,0.002,2967.2,2966.7,1.4772]
[1766719017382,0.883,2967.1,2966.7,1.4772]
[1766719017699,0.883,2967.0,2966.7,1.4772]
[1766719017902,0.883,2967.0,2966.3,3.37111844]
[1766719018214,0.883,2967.0,2966.4,1.81431184]
[1766719019182,1.371,2967.5,2966.5,1.4772]
[1766719019393,0.883,2967.1,2966.5,1.4772]
[1766719019687,4.25331239,2967.1,2966.5,1.4772]
[1766719020110,4.25331239,2967.1,2966.5,1.44517175]
[1766719020410,0.883,2967.1,2966.5,1.44517175]
[1766719020616,1.445423,2967.1,2966.5,1.44517175]
[1766719020813,0.883,2967.0,2966.5,1.44517175]
[1766719021109,3.36983993,2967.5,2966.6,1.51090862]
[1766719021289,3.37006706,2967.3,2966.6,1.4772]
[1766719021489,1.371,2967.5,2966.7,0.03370748]
[1766719021713,4.74089062,2967.5,2966.6,1.4772]
[1766719021908,8.11078124,2967.5,2966.6,1.96201084]
[1766719022210,1.371,2967.4,2966.6,1.4772]
[1766719022513,1.371,2967.9,2966.8,1.4772]
[1766719022705,1.371,2967.9,2967.1,1.4772]
[1766719023191,4.74040132,2967.9,2967.1,1.4772]
[1766719023511,4.74040132,2967.9,2966.6,7.62372452]
[1766719023512,1.371,2967.6,2966.6,0.882]
[1766719023714,1.371,2967.6,2966.6,4.25281976]
[1766719023914,1.371,2967.6,2966.6,2.3592]
[1766719024092,1.371,2967.5,2966.3,4.84836022]
[1766719024417,1.371,2967.5,2966.5,0.001]
[1766719024613,1.371,2967.5,2966.5,1.4782]
[1766719024817,0.883,2967.5,2966.5,3.37191558]
[1766719025005,1.373,2967.4,2966.6,3.37081393]
[1766719025205,1.373,2967.4,2966.7,0.03370748]
[1766719025512,1.373,2967.4,2966.8,0.03370635]
[1766719025713,1.373,2967.4,2966.5,0.03470975]
[1766719026018,1.373,2967.4,2966.6,0.34057618]
[1766719026220,1.371,2967.3,2966.6,0.34057618]
[1766719026533,1.371,2967.3,2965.7,0.2]
[1766719026745,10.11187453,2967.4,2966.0,11.857598]
[1766719026746,1.371,2967.1,2966.0,11.857598]
[1766719026893,1.371,2967.1,2966.2,3.37127273]
[1766719027093,1.371,2967.1,2966.3,0.37421073]
[1766719027094,1.40474029,2967.1,2966.3,0.37421073]
[1766719027389,3.40411701,2967.1,2966.4,1.4772]
[1766719028459,0.03374029,2967.1,2966.4,1.4772]
[1766719028589,0.002,2967.4,2966.6,1.4772]
[1766719028789,0.002,2967.4,2966.8,1.4772]
[1766719028990,0.883,2967.3,2966.5,1.4772]
[1766719029196,0.883,2967.3,2966.6,0.48482773]
[1766719029420,3.37199152,2967.4,2966.6,1.51090862]
[1766719029594,0.883,2967.2,2966.6,1.51090862]
[1766719031428,0.002,2967.4,2966.7,1.4772]
[1766719031718,0.002,2967.4,2966.8,0.03370635]
[1766719031887,0.01011633,2966.9,2965.6,0.001]
[1766719032095,0.01011633,2966.1,2965.6,0.001]
[1766719032289,0.03374664,2966.0,2965.6,0.001]
[1766719032493,0.03374664,2966.2,2965.6,0.001]
[1766719033126,0.04386297,2966.2,2965.6,0.001]
[1766719033492,3.37143049,2966.1,2965.6,0.001]
[1766719033697,4.74227411,2966.3,2965.6,0.001]
[1766719033698,0.03374664,2966.0,2965.6,0.001]
[1766719033925,1.58026297,2966.2,2965.6,0.001]
[1766719035534,3.37143049,2966.1,2965.6,0.001]
[1766719035742,0.03374664,2966.0,2965.6,0.001]
[1766719036523,0.86604912,2966.0,2965.4,0.001]
[1766719036715,1.5364,2965.9,2965.3,0.001]
[1766719036940,1.5364,2965.7,2965.3,0.001]
[1766719037257,0.03374664,2965.6,2965.3,0.001]
[1766719037646,0.03374664,2965.6,2964.9,0.001]
[1766719037647,1.5364,2965.5,2964.9,0.001]
[1766719037847,0.03374664,2965.4,2964.9,0.001]
[1766719038149,1.57014664,2965.4,2964.7,0.001]
[1766719038444,1.57014664,2965.4,2964.7,2.231e-05]
[1766719039236,1.57014664,2965.4,2964.6,6.4392893]
[1766719039442,1.57014664,2965.4,2964.7,3.904862]
[1766719039645,0.03374664,2965.4,2964.8,1.4263]
[1766719039828,0.03374664,2965.5,2964.8,1.4263]
[1766719040150,1.57014664,2965.5,2964.7,6.713819]
[1766719040349,0.03374664,2965.7,2964.8,1.4263]
[1766719040655,3.37165784,2965.9,2964.8,0.03372908]
[1766719040656,1.5364,2965.5,2964.8,0.03372908]
[1766719040858,0.03374664,2965.4,2964.6,1.4263]
[1766719041758,1.5364,2965.1,2964.5,2.293052]
[1766719041964,1.5364,2965.1,2964.5,0.65494957]
[1766719042165,0.03374664,2965.3,2964.5,2.933791]
[1766719042460,3.40611661,2965.3,2964.5,3.659756]
[1766719042658,3.40611661,2965.3,2964.5,1.4273]
[1766719042959,0.03374664,2965.3,2964.7,1.4263]
[1766719043264,0.03374664,2965.8,2964.9,1.4263]
[1766719043555,3.40554803,2965.8,2964.9,1.4263]
[1766719043735,0.03374664,2965.8,2964.9,3.37277533]
[1766719044060,0.03374664,2965.8,2965.0,1.3248]
[1766719044061,3.40553469,2965.8,2965.0,1.3248]
[1766719044256,4.94193469,2965.8,2965.0,1.3248]
[1766719044462,1.5364,2965.7,2965.0,0.5580655]
[1766719044637,0.03374664,2965.6,2964.8,0.883]
[1766719044829,0.03374664,2965.6,2964.8,2.0969]
[1766719045466,0.03374664,2965.6,2964.8,5.46979908]
[1766719045629,0.03374664,2965.6,2964.9,0.54697991]
[1766719045828,0.03374664,2965.7,2965.0,0.03372681]
[1766719046137,0.03374664,2965.9,2965.0,0.03372681]
[1766719046352,1.5364,2965.8,2965.0,0.03372681]
[1766719046553,1.5364,2965.6,2965.0,0.03372681]
[1766719046858,1.5364,2965.6,2965.0,4.949e-05]
[1766719047059,1.5364,2965.6,2965.0,0.01691305]
[1766719047254,0.04214572,2965.9,2965.0,0.01691305]
[1766719047455,0.04214572,2965.9,2965.0,1.42634949]
[1766719047658,3.37177152,2965.8,2965.0,1.42634949]
[1766719047962,0.04214856,2965.7,2965.0,1.42634949]
[1766719048178,3.37131683,2966.2,2965.3,1.4263]
[1766719048473,1.57186536,2966.1,2965.1,1.90621217]
[1766719048878,1.54651872,2965.9,2965.0,4.949e-05]
[1766719049086,0.02534664,2965.8,2965.0,4.949e-05]
[1766719049246,1.5364,2965.6,2964.8,0.883]
[1766719049447,1.5364,2965.4,2964.8,8.858598]
[1766719049642,0.02534664,2965.3,2964.6,1.4263]
[1766719049875,0.02534664,2965.5,2964.8,1.4263]
[1766719050076,0.01011872,2965.7,2964.9,0.03372795]
[1766719050077,0.90834664,2965.4,2964.9,0.03372795]
[1766719050375,0.90834664,2965.4,2965.0,1.4263]
[1766719050569,0.90834664,2965.4,2964.7,0.03373022]
[1766719050570,0.90834664,2965.4,2964.6,3.37310059]
[1766719050743,0.90834664,2965.4,2964.7,4.858598]
[1766719050943,0.02534664,2965.4,2964.8,2.858598]
[1766719051163,0.90834664,2965.4,2964.5,0.001]
[1766719051462,1.67460542,2965.4,2964.7,2.858598]
[1766719051853,1.67460542,2965.4,2964.5,0.001]
[1766719051854,5.04687836,2965.4,2964.5,0.001]
[1766719052048,8.4191513,2965.4,2964.6,1.4263]
[1766719052283,5.02153172,2965.4,2964.6,1.4263]
[1766719052449,5.04687836,2965.4,2964.6,1.4263]
[1766719052655,0.85303307,2965.3,2964.6,1.4263]
[1766719052857,0.02534664,2965.2,2964.6,1.4263]
[1766719053879,3.39782448,2965.2,2964.6,1.4263]
[1766719054764,0.02534664,2965.2,2964.6,1.4263]
[1766719055163,0.883,2965.1,2964.7,1.46003022]
[1766719055453,3.4078281,2965.3,2964.8,1.4263]
[1766719055775,3.74505574,2965.3,2964.5,1.4273]
[1766719055956,3.4078281,2965.3,2964.5,1.4273]
[1766719056163,3.4078281,2965.3,2964.3,3.36114687]
[1766719056548,6.78019084,2965.3,2964.5,0.001]
[1766719056781,6.68001573,2965.3,2964.5,0.001]
[1766719056984,6.70536237,2965.3,2964.4,2.0]
[1766719057157,0.01011872,2965.1,2964.2,3.37358385]
[1766719057358,0.04215851,2965.0,2964.2,10.346598]
[1766719057557,0.04215851,2965.0,2964.3,0.02528432]
[1766719057770,0.04215709,2965.1,2964.4,1.4263]
[1766719057973,3.41475388,2965.1,2964.1,9.54896]
[1766719058181,0.0101194,2965.0,2964.2,0.02528517]
[1766719058385,0.0101194,2964.5,2963.9,0.001]
[1766719058588,0.04216704,2964.4,2963.9,0.001]
[1766719059061,0.01012094,2964.3,2963.9,1.4273]
[1766719059382,0.05228798,2964.4,2963.5,1.4263]
[1766719059557,0.01012094,2964.2,2963.5,1.4263]
[1766719059754,0.01012094,2963.9,2963.5,1.4263]
[1766719059989,3.37381916,2964.0,2963.0,18.706627]
[1766719060190,0.05229732,2963.9,2963.2,19.009159]
[1766719060490,0.05229732,2963.9,2963.2,1.4263]
[1766719061099,0.73328901,2963.9,2963.2,1.4263]
[1766719061273,0.01012316,2963.7,2963.2,1.4263]
[1766719061594,0.01012316,2963.5,2962.5,3.37546679]
[1766719061823,0.04218127,2963.4,2962.3,5.320971]
[1766719062099,0.883,2963.4,2962.5,1.4263]
[1766719062273,3.6970749,2965.1,2962.3,10.12726596]
[1766719062274,0.883,2964.1,2962.7,1.4263]
[1766719062469,0.01012538,2963.8,2962.9,1.4263]
[1766719062670,0.042177,2963.7,2962.9,1.4263]
[1766719062989,0.925177,2963.7,2962.9,1.4263]
[1766719063509,0.042177,2963.7,2962.9,1.4263]
[1766719063879,0.883,2963.9,2963.5,0.9766]
[1766719064083,0.01012538,2964.4,2963.7,0.9756]
[1766719064399,0.92515623,2964.3,2963.5,0.001]
[1766719065013,0.04215623,2964.3,2963.6,0.9756]
[1766719065175,0.04215623,2964.7,2963.7,0.0337416]
[1766719065376,0.04215623,2964.7,2963.6,7.899968]
[1766719065696,0.04215623,2964.7,2963.5,0.001]
[1766719065697,0.883,2964.8,2963.8,0.9756]
[1766719065898,3.42530417,2964.7,2963.8,3.37402906]
[1766719066105,0.05228161,2964.7,2963.8,3.37402906]
[1766719067218,0.05228161,2964.7,2963.9,0.9756]
[1766719067376,0.05228161,2964.7,2964.1,0.9756]
[1766719067714,0.04215623,2964.7,2964.1,0.9756]
[1766719068216,3.41519697,2964.7,2964.0,0.43496291]
[1766719068589,3.41519697,2964.7,2963.9,0.03373932]
[1766719069310,0.01012538,2964.6,2963.8,0.9523]
[1766719069603,0.01012538,2964.4,2964.0,0.9523]
[1766719069787,0.883,2964.3,2963.6,0.9523]
[1766719069987,0.04215623,2964.2,2963.6,0.9523]
[1766719070200,0.05228161,2964.2,2963.6,0.9523]
[1766719070501,0.48417659,2964.2,2963.6,0.9523]
[1766719071201,0.05228161,2964.2,2964.0,0.001]
[1766719071909,0.05228161,2964.2,2963.6,0.9523]
[1766719072407,0.04215623,2964.2,2963.6,0.9523]
[1766719072590,3.37293934,2964.8,2963.7,0.9860416]
[1766719072791,0.883,2964.7,2963.9,0.9523]
[1766719072991,7.62904512,2964.7,2964.1,0.9523]
[1766719073509,0.98429393,2964.8,2964.1,0.9523]
[1766719073810,0.883,2964.7,2964.3,0.9523]
[1766719073980,3.37245379,2965.2,2964.3,0.9523]
[1766719074378,0.002,2965.3,2964.5,0.9523]
[1766719074583,0.002,2965.3,2964.5,4.3254769]
[1766719074784,0.883,2965.2,2964.6,0.9523]
[1766719075616,0.883,2965.2,2964.2,3.37354907]
[1766719075819,0.883,2965.2,2964.1,0.9523]
[1766719076027,0.76297433,2965.1,2963.7,0.9523]
[1766719076189,0.883,2965.2,2964.0,3.37379259]
[1766719076588,3.37256753,2965.1,2964.0,3.37379259]
[1766719076784,6.75526044,2965.1,2963.5,0.001]
[1766719077025,1.64580899,2965.0,2963.9,3.37393144]
[1766719077197,1.64580899,2965.0,2964.0,0.03373819]
[1766719077598,0.0337,2964.9,2963.6,1.13593]
[1766719077913,0.16896344,2964.8,2963.8,3.37397708]
[1766719078108,0.77293437,2965.0,2963.9,0.03373932]
[1766719078109,0.9167,2964.7,2963.9,0.03373932]
[1766719078313,0.9167,2964.7,2963.6,0.18363]
[1766719078512,0.9167,2964.7,2963.5,0.001]
[1766719078513,3.37325012,2964.5,2963.5,3.37536499]
[1766719078706,0.04216704,2964.4,2963.6,0.01694776]
[1766719078892,0.883,2964.5,2963.7,0.9523]
[1766719079229,3.37297067,2964.8,2963.7,0.9523]
[1766719079391,0.92516278,2964.7,2963.7,0.9523]
[1766719080021,0.92516278,2964.7,2963.5,6.74975338]
[1766719080333,0.92516278,2964.7,2963.6,0.67497534]
[1766719080621,3.41527329,2964.7,2963.9,0.9523]
[1766719080826,0.883,2964.6,2963.9,0.9523]
[1766719081247,0.92516278,2964.7,2963.9,0.9523]
[1766719081399,0.883,2964.8,2964.1,0.9523]
[1766719082024,3.41473215,2965.1,2964.1,0.9523]
[1766719082232,0.883,2965.0,2964.1,0.9523]
[1766719082402,0.883,2965.0,2964.0,0.77003937]
[1766719082403,0.883,2964.9,2964.3,0.9523]
[1766719082614,0.04215709,2965.1,2964.4,0.9523]
[1766719083008,0.883,2965.1,2964.4,0.9523]
[1766719083208,0.04215851,2965.0,2964.4,0.9523]
[1766719083563,0.04215851,2965.0,2964.5,0.9523]
[1766719084632,6.74559006,2964.9,2963.7,0.9523]
[1766719084936,6.78774999,2964.9,2963.7,0.9523]
[1766719085241,0.01012538,2964.8,2963.7,0.9523]
[1766719085404,0.04216278,2964.7,2963.7,0.9523]
[1766719085610,0.89312538,2964.6,2963.4,3.37443913]
[1766719085916,0.92516562,2964.5,2963.3,3.3745884]
[1766719086156,0.92516562,2964.5,2962.8,0.9523]
[1766719086157,0.89312538,2964.4,2962.8,0.9523]
[1766719086345,0.04216847,2964.3,2963.2,3.37467574]
[1766719086544,0.883,2964.2,2963.2,3.37467574]
[1766719086748,3.41587665,2964.1,2963.0,6.74988134]
[1766719087148,6.78958199,2964.1,2963.0,3.37492353]
[1766719087348,4.18312902,2964.1,2963.1,0.71827143]
[1766719087649,6.78958199,2964.1,2963.1,0.71827143]
[1766719087956,3.41587665,2964.1,2963.1,0.71827143]
[1766719088156,0.884,2964.0,2963.1,0.71827143]
[1766719088335,0.884,2963.9,2963.1,0.71827143]
[1766719088536,0.884,2963.9,2963.1,1.67057143]
[1766719088837,0.884,2963.9,2963.2,3.37473002]
[1766719089043,0.884,2963.9,2963.3,0.9523]
[1766719089044,0.04217558,2963.8,2963.3,0.9523]
[1766719089338,0.04217558,2963.8,2962.8,4.3284605]
[1766719089539,0.04217558,2963.8,2962.8,0.9533]